[Event "*** Titled Tuesday Blitz"]
[Site "Chess.com"]
[Date "2021.02.02"]
[Round "5"]
[White "JAAC2002"]
[Black "kasparicy"]
[Result "0-1"]
[WhiteElo "2493"]
[BlackElo "2344"]
[TimeControl "180+1"]
[EndTime "10:59:11 PST"]
[Termination "kasparicy won by resignation"]

1. d4 {[%clk 0:02:58.9]} 1... Nf6 {[%clk 0:02:59.5]} 2. Nf3 {[%clk 0:02:58]}
2... g6 {[%clk 0:02:59.7]} 3. g3 {[%clk 0:02:55.6]} 3... Bg7 {[%clk 0:02:57.2]}
4. Bg2 {[%clk 0:02:56.5]} 4... d5 {[%clk 0:02:57.7]} 5. O-O {[%clk 0:02:57.3]}
5... O-O {[%clk 0:02:57.9]} 6. b3 {[%clk 0:02:53.8]} 6... Ne4 {[%clk 0:02:55.8]}
7. Bb2 {[%clk 0:02:53.7]} 7... c5 {[%clk 0:02:55.3]} 8. Nbd2 {[%clk 0:02:51.1]}
8... Nc6 {[%clk 0:02:54.6]} 9. e3 {[%clk 0:02:48.6]} 9... Bg4 {[%clk 0:02:50.4]}
10. h3 {[%clk 0:02:39.6]} 10... Nxd2 {[%clk 0:02:47.1]} 11. Qxd2 {[%clk
0:02:37.7]} 11... Bf5 {[%clk 0:02:47.5]} 12. Rfd1 {[%clk 0:02:21.7]} 12... Be4
{[%clk 0:02:47]} 13. c4 {[%clk 0:02:12]} 13... dxc4 {[%clk 0:02:44]} 14. bxc4
{[%clk 0:02:12.9]} 14... cxd4 {[%clk 0:02:44.1]} 15. exd4 {[%clk 0:02:11.6]}
15... Na5 {[%clk 0:02:38.3]} 16. Rac1 {[%clk 0:02:08.8]} 16... Rc8 {[%clk
0:02:36.8]} 17. Qe2 {[%clk 0:02:00.6]} 17... Bxf3 {[%clk 0:02:27.4]} 18. Bxf3
{[%clk 0:01:58.7]} 18... Qd7 {[%clk 0:02:26.7]} 19. Bg4 {[%clk 0:01:50.5]} 19...
f5 {[%clk 0:02:16.8]} 20. Bf3 {[%clk 0:01:44.5]} 20... e6 {[%clk 0:02:13.9]} 21.
d5 {[%clk 0:01:05.2]} 21... e5 {[%clk 0:02:14.1]} 22. d6 {[%clk 0:00:34.4]}
22... e4 {[%clk 0:02:08]} 23. Bxg7 {[%clk 0:00:29.5]} 23... Kxg7 {[%clk
0:02:08.9]} 24. Bg2 {[%clk 0:00:25.7]} 24... Rf6 {[%clk 0:02:07.6]} 25. c5
{[%clk 0:00:23.5]} 25... b6 {[%clk 0:02:07.8]} 26. Qd2 {[%clk 0:00:17.3]} 26...
Nb7 {[%clk 0:01:54.9]} 27. cxb6 {[%clk 0:00:11.6]} 27... axb6 {[%clk 0:01:36.3]}
28. Rxc8 {[%clk 0:00:09]} 28... Qxc8 {[%clk 0:01:36.8]} 29. d7 {[%clk
0:00:09.5]} 29... Qd8 {[%clk 0:01:36.5]} 30. Qd4 {[%clk 0:00:09.4]} 30... Nc5
{[%clk 0:01:35.6]} 31. g4 {[%clk 0:00:08.7]} 31... Kf7 {[%clk 0:01:27.5]} 32. g5
{[%clk 0:00:06.8]} 32... Re6 {[%clk 0:01:24.1]} 33. Bf1 {[%clk 0:00:07]} 33...
Qxg5+ {[%clk 0:01:19.3]} 34. Kh1 {[%clk 0:00:05.3]} 34... Nxd7 {[%clk
0:01:10.7]} 35. Qxd7+ {[%clk 0:00:06.2]} 35... Re7 {[%clk 0:01:11.6]} 36. Bc4+
{[%clk 0:00:06.3]} 36... Kg7 {[%clk 0:01:11.8]} 37. Qd4+ {[%clk 0:00:06.2]}
37... Kh6 {[%clk 0:01:10.8]} 38. Qe3 {[%clk 0:00:06.1]} 38... f4 {[%clk
0:01:11.3]} 39. Qe2 {[%clk 0:00:04.2]} 39... e3 {[%clk 0:01:02.9]} 40. f3 {[%clk
0:00:04.2]} 40... Qg3 {[%clk 0:00:58.8]} 41. Qg2 {[%clk 0:00:04.3]} 41... e2
{[%clk 0:00:59.3]} 42. Bxe2 {[%clk 0:00:04.7]} 42... Qxg2+ {[%clk 0:00:51.9]}
43. Kxg2 {[%clk 0:00:05.6]} 43... Rxe2+ {[%clk 0:00:52.5]} 44. Kg1 {[%clk
0:00:06.3]} 44... Rxa2 {[%clk 0:00:51.8]} 45. Rd6 {[%clk 0:00:06.8]} 45... b5
{[%clk 0:00:48.7]} 46. Rb6 {[%clk 0:00:06.9]} 46... Rb2 {[%clk 0:00:48.4]} 47.
Rb7 {[%clk 0:00:06]} 47... b4 {[%clk 0:00:44.9]} 48. Rb5 {[%clk 0:00:06.3]}
48... b3 {[%clk 0:00:42.8]} 49. Rb6 {[%clk 0:00:06.2]} 49... Kg5 {[%clk
0:00:42.5]} 50. Rb7 {[%clk 0:00:06.2]} 50... Kh4 {[%clk 0:00:42.4]} 51. Rxh7+
{[%clk 0:00:06.2]} 51... Kg3 {[%clk 0:00:42.8]} 52. Kf1 {[%clk 0:00:06.9]} 52...
Kxf3 {[%clk 0:00:42.8]} 0-1

[Event "*** Titled Tuesday Blitz"]
[Site "Chess.com"]
[Date "2021.02.02"]
[Round "5"]
[White "Deepweb2020"]
[Black "arctic_t00"]
[Result "0-1"]
[WhiteElo "2386"]
[BlackElo "2529"]
[TimeControl "180+1"]
[EndTime "10:59:12 PST"]
[Termination "arctic_t00 won by checkmate"]

1. d4 {[%clk 0:02:57.7]} 1... Nf6 {[%clk 0:02:59.8]} 2. Bf4 {[%clk 0:02:56.2]}
2... g6 {[%clk 0:02:59]} 3. Nc3 {[%clk 0:02:55.1]} 3... d5 {[%clk 0:02:59]} 4.
e3 {[%clk 0:02:55.2]} 4... Bg7 {[%clk 0:02:59]} 5. h4 {[%clk 0:02:54.6]} 5... h5
{[%clk 0:02:59.1]} 6. Nb5 {[%clk 0:02:53.5]} 6... Na6 {[%clk 0:02:59]} 7. c4
{[%clk 0:02:53.6]} 7... O-O {[%clk 0:02:40.7]} 8. c5 {[%clk 0:02:49.3]} 8... c6
{[%clk 0:02:27.8]} 9. Nc3 {[%clk 0:02:49]} 9... b6 {[%clk 0:02:26.6]} 10. cxb6
{[%clk 0:02:43]} 10... axb6 {[%clk 0:02:27]} 11. Nf3 {[%clk 0:02:40.3]} 11...
Bg4 {[%clk 0:02:23.7]} 12. Be2 {[%clk 0:02:35.1]} 12... Nd7 {[%clk 0:01:58]} 13.
O-O {[%clk 0:02:28]} 13... Bxf3 {[%clk 0:01:55]} 14. Bxf3 {[%clk 0:02:24.1]}
14... e5 {[%clk 0:01:55.1]} 15. Bg3 {[%clk 0:02:19.2]} 15... e4 {[%clk
0:01:43.3]} 16. Be2 {[%clk 0:02:16.4]} 16... Bf6 {[%clk 0:01:37.6]} 17. Bd6
{[%clk 0:02:14.1]} 17... Be7 {[%clk 0:01:26.2]} 18. Bxe7 {[%clk 0:02:11.6]}
18... Qxe7 {[%clk 0:01:27.1]} 19. g3 {[%clk 0:02:11.8]} 19... Nc7 {[%clk
0:01:23.7]} 20. Rc1 {[%clk 0:02:05.2]} 20... Ne6 {[%clk 0:01:19.8]} 21. a3
{[%clk 0:01:59.3]} 21... f5 {[%clk 0:01:11.7]} 22. Na2 {[%clk 0:01:54.9]} 22...
Rac8 {[%clk 0:00:55.7]} 23. Nb4 {[%clk 0:01:51.5]} 23... Qd6 {[%clk 0:00:51.5]}
24. Qa4 {[%clk 0:01:41.6]} 24... b5 {[%clk 0:00:38.3]} 25. Qb3 {[%clk
0:01:14.8]} 25... Nb6 {[%clk 0:00:30.1]} 26. Qa2 {[%clk 0:00:53.9]} 26... Kh7
{[%clk 0:00:29]} 27. Rc2 {[%clk 0:00:47.4]} 27... Rg8 {[%clk 0:00:28.4]} 28.
Rfc1 {[%clk 0:00:41.5]} 28... Nc4 {[%clk 0:00:23.7]} 29. Bxc4 {[%clk 0:00:26.4]}
29... bxc4 {[%clk 0:00:23.5]} 30. b3 {[%clk 0:00:27.3]} 30... g5 {[%clk
0:00:23.1]} 31. hxg5 {[%clk 0:00:23]} 31... Nxg5 {[%clk 0:00:21.3]} 32. bxc4
{[%clk 0:00:20.8]} 32... Nf3+ {[%clk 0:00:21.6]} 33. Kf1 {[%clk 0:00:20.7]}
33... h4 {[%clk 0:00:14.1]} 34. cxd5 {[%clk 0:00:15.1]} 34... hxg3 {[%clk
0:00:14.4]} 35. fxg3 {[%clk 0:00:15.3]} 35... Qxg3 {[%clk 0:00:14]} 36. Rg2
{[%clk 0:00:12.8]} 36... Qh3 {[%clk 0:00:10.6]} 37. d6 {[%clk 0:00:08.9]} 37...
Qh1+ {[%clk 0:00:09.8]} 38. Ke2 {[%clk 0:00:02]} 38... Rxg2# {[%clk 0:00:09.9]}
0-1

[Event "*** Titled Tuesday Blitz"]
[Site "Chess.com"]
[Date "2021.02.02"]
[Round "5"]
[White "Cocaino74"]
[Black "Vamostodorecto"]
[Result "1/2-1/2"]
[WhiteElo "2283"]
[BlackElo "2445"]
[TimeControl "180+1"]
[EndTime "10:59:12 PST"]
[Termination "Game drawn by repetition"]

1. e4 {[%clk 0:03:00.9]} 1... e5 {[%clk 0:02:59.9]} 2. Nf3 {[%clk 0:03:00.8]}
2... Nc6 {[%clk 0:03:00.1]} 3. Bc4 {[%clk 0:03:01.3]} 3... Bc5 {[%clk
0:02:59.2]} 4. c3 {[%clk 0:03:01.1]} 4... d6 {[%clk 0:02:51.8]} 5. d4 {[%clk
0:03:00.4]} 5... Bb6 {[%clk 0:02:50.3]} 6. O-O {[%clk 0:02:59]} 6... Bg4 {[%clk
0:02:49.2]} 7. Bb5 {[%clk 0:02:49]} 7... Bxf3 {[%clk 0:02:46.7]} 8. Qxf3 {[%clk
0:02:47]} 8... exd4 {[%clk 0:02:47.1]} 9. cxd4 {[%clk 0:02:06.1]} 9... Bxd4
{[%clk 0:02:48]} 10. Nc3 {[%clk 0:02:05]} 10... Nf6 {[%clk 0:02:45.1]} 11. Rd1
{[%clk 0:01:53.8]} 11... Bxc3 {[%clk 0:02:39.6]} 12. Qxc3 {[%clk 0:01:49.1]}
12... O-O {[%clk 0:02:30.4]} 13. Bxc6 {[%clk 0:01:49]} 13... bxc6 {[%clk
0:02:30.4]} 14. e5 {[%clk 0:01:44.4]} 14... Ng4 {[%clk 0:01:58.4]} 15. exd6
{[%clk 0:01:44.3]} 15... cxd6 {[%clk 0:01:54.6]} 16. Bf4 {[%clk 0:01:26.2]}
16... Qf6 {[%clk 0:01:46.2]} 17. Qxf6 {[%clk 0:00:47.9]} 17... Nxf6 {[%clk
0:01:47.1]} 18. Rxd6 {[%clk 0:00:47.9]} 18... Rac8 {[%clk 0:01:45.5]} 19. Rc1
{[%clk 0:00:45.8]} 19... Rfd8 {[%clk 0:01:44.9]} 20. Rxd8+ {[%clk 0:00:41.3]}
20... Rxd8 {[%clk 0:01:45.8]} 21. Bg5 {[%clk 0:00:41.5]} 21... Rd6 {[%clk
0:01:36.8]} 22. Bxf6 {[%clk 0:00:37.9]} 22... Rxf6 {[%clk 0:01:37.7]} 23. Rd1
{[%clk 0:00:37.1]} 23... g6 {[%clk 0:01:33.6]} 24. Rd8+ {[%clk 0:00:32.9]} 24...
Kg7 {[%clk 0:01:32.4]} 25. Kf1 {[%clk 0:00:18.2]} 25... Rf5 {[%clk 0:01:26.7]}
26. Rc8 {[%clk 0:00:15.6]} 26... Rc5 {[%clk 0:01:25.3]} 27. Ra8 {[%clk
0:00:11.6]} 27... Rc2 {[%clk 0:01:13.7]} 28. Rxa7 {[%clk 0:00:10.4]} 28... Rxb2
{[%clk 0:01:13.2]} 29. Rc7 {[%clk 0:00:09.5]} 29... Rxa2 {[%clk 0:01:09.7]} 30.
Rxc6 {[%clk 0:00:09.8]} 30... h5 {[%clk 0:01:08.7]} 31. g3 {[%clk 0:00:09.5]}
31... Kh6 {[%clk 0:01:07.2]} 32. h4 {[%clk 0:00:09.3]} 32... Kg7 {[%clk
0:01:04.2]} 33. Kg2 {[%clk 0:00:09.4]} 33... f6 {[%clk 0:01:03.1]} 34. Rc7+
{[%clk 0:00:09.4]} 34... Kh6 {[%clk 0:01:02.3]} 35. Rc6 {[%clk 0:00:08.3]} 35...
Kg7 {[%clk 0:01:01.8]} 36. Rc7+ {[%clk 0:00:08.8]} 36... Kh6 {[%clk 0:00:58.9]}
37. Rf7 {[%clk 0:00:08.8]} 37... Ra6 {[%clk 0:00:55.7]} 38. f4 {[%clk
0:00:07.6]} 38... f5 {[%clk 0:00:48.8]} 39. Kh3 {[%clk 0:00:03.8]} 39... Ra3
{[%clk 0:00:48.1]} 40. Re7 {[%clk 0:00:03.5]} 40... Rb3 {[%clk 0:00:48.4]} 41.
Rd7 {[%clk 0:00:03.7]} 41... Rb1 {[%clk 0:00:48.5]} 42. Rf7 {[%clk 0:00:03.8]}
42... Rh1+ {[%clk 0:00:47.4]} 43. Kg2 {[%clk 0:00:04.4]} 43... Ra1 {[%clk
0:00:46.9]} 44. Kh3 {[%clk 0:00:04.8]} 44... Ra2 {[%clk 0:00:46.8]} 45. Re7
{[%clk 0:00:04.5]} 45... Rb2 {[%clk 0:00:46.5]} 46. Rd7 {[%clk 0:00:04.8]} 46...
Rb3 {[%clk 0:00:46.1]} 47. Re7 {[%clk 0:00:04.9]} 47... Rf3 {[%clk 0:00:45.2]}
48. Rd7 {[%clk 0:00:04.9]} 48... Ra3 {[%clk 0:00:44.6]} 49. Re7 {[%clk
0:00:05.2]} 49... Ra1 {[%clk 0:00:44.2]} 50. Rd7 {[%clk 0:00:05.5]} 50... Rh1+
{[%clk 0:00:44]} 51. Kg2 {[%clk 0:00:06]} 51... Ra1 {[%clk 0:00:44.9]} 52. Kh3
{[%clk 0:00:06.1]} 52... Ra3 {[%clk 0:00:44.7]} 53. Re7 {[%clk 0:00:06.3]}
1/2-1/2

[Event "*** Titled Tuesday Blitz"]
[Site "Chess.com"]
[Date "2021.02.02"]
[Round "5"]
[White "andriipalchuk"]
[Black "Enriquack"]
[Result "0-1"]
[WhiteElo "2592"]
[BlackElo "2451"]
[TimeControl "180+1"]
[EndTime "10:59:15 PST"]
[Termination "Enriquack won by resignation"]

1. e4 {[%clk 0:02:54.2]} 1... c5 {[%clk 0:02:59.8]} 2. Nf3 {[%clk 0:02:49.9]}
2... e6 {[%clk 0:03:00.1]} 3. c3 {[%clk 0:02:49.9]} 3... d5 {[%clk 0:02:59.9]}
4. exd5 {[%clk 0:02:50.8]} 4... Qxd5 {[%clk 0:03:00.5]} 5. d4 {[%clk 0:02:51.5]}
5... Nf6 {[%clk 0:03:00.9]} 6. Na3 {[%clk 0:02:51.5]} 6... cxd4 {[%clk
0:03:00.4]} 7. Nb5 {[%clk 0:02:51.9]} 7... Qd8 {[%clk 0:03:00.6]} 8. Nbxd4
{[%clk 0:02:52.1]} 8... Be7 {[%clk 0:03:00.2]} 9. Bd3 {[%clk 0:02:51.2]} 9...
O-O {[%clk 0:03:00.2]} 10. O-O {[%clk 0:02:51.8]} 10... Nbd7 {[%clk 0:02:44.6]}
11. Qe2 {[%clk 0:02:44.5]} 11... Qa5 {[%clk 0:02:35.9]} 12. Bf4 {[%clk
0:02:22.2]} 12... Re8 {[%clk 0:02:24.1]} 13. Bg3 {[%clk 0:01:45.2]} 13... Nf8
{[%clk 0:02:15]} 14. Ne5 {[%clk 0:01:26.9]} 14... Ng6 {[%clk 0:02:13.3]} 15. b4
{[%clk 0:01:25.2]} 15... Qb6 {[%clk 0:02:04.7]} 16. Nc4 {[%clk 0:01:20.8]} 16...
Qd8 {[%clk 0:02:02.8]} 17. Rad1 {[%clk 0:01:20]} 17... Nd5 {[%clk 0:01:55.1]}
18. Bxg6 {[%clk 0:00:38.9]} 18... hxg6 {[%clk 0:01:49]} 19. Nb5 {[%clk
0:00:39.6]} 19... Nxc3 {[%clk 0:01:33.5]} 20. Qc2 {[%clk 0:00:21.8]} 20... Nxd1
{[%clk 0:01:33.2]} 21. Rxd1 {[%clk 0:00:22.7]} 21... Bd7 {[%clk 0:01:31.2]} 22.
Nc7 {[%clk 0:00:22.3]} 22... Rc8 {[%clk 0:01:28.6]} 23. Nxe8 {[%clk 0:00:20.9]}
23... Qxe8 {[%clk 0:01:28.4]} 24. Qe4 {[%clk 0:00:16.5]} 24... Bc6 {[%clk
0:01:21.4]} 25. Qe3 {[%clk 0:00:12.6]} 25... Bd5 {[%clk 0:01:12]} 26. Ne5 {[%clk
0:00:11]} 26... Qa4 {[%clk 0:01:08.2]} 27. Re1 {[%clk 0:00:07.1]} 27... Bxb4
{[%clk 0:01:05.9]} 28. Rf1 {[%clk 0:00:07.5]} 28... Qxa2 {[%clk 0:00:58.9]} 29.
Qf4 {[%clk 0:00:06.9]} 29... f6 {[%clk 0:00:35.3]} 30. Qxb4 {[%clk 0:00:06.6]}
30... fxe5 {[%clk 0:00:35.7]} 31. Bxe5 {[%clk 0:00:07.3]} 31... Rf8 {[%clk
0:00:19.5]} 32. h3 {[%clk 0:00:05.5]} 32... Qe2 {[%clk 0:00:17.1]} 33. Bg3
{[%clk 0:00:04.9]} 33... a6 {[%clk 0:00:12.1]} 34. Re1 {[%clk 0:00:03.9]} 34...
Qc4 {[%clk 0:00:11.4]} 35. Qe7 {[%clk 0:00:02.2]} 35... Rf7 {[%clk 0:00:10.3]}
36. Qe8+ {[%clk 0:00:02.1]} 36... Rf8 {[%clk 0:00:10.7]} 37. Qe7 {[%clk
0:00:03]} 37... Qc6 {[%clk 0:00:10.5]} 38. Qh4 {[%clk 0:00:02.4]} 38... Rf7
{[%clk 0:00:10.4]} 39. Qd8+ {[%clk 0:00:02.1]} 39... Rf8 {[%clk 0:00:10.5]} 40.
Qh4 {[%clk 0:00:03]} 40... Bxg2 {[%clk 0:00:10.6]} 41. Qg4 {[%clk 0:00:03.9]}
41... Bd5 {[%clk 0:00:10.3]} 42. Qxg6 {[%clk 0:00:03.9]} 42... Rf7 {[%clk
0:00:10.5]} 43. Be5 {[%clk 0:00:04.1]} 43... Qc4 {[%clk 0:00:07.8]} 44. Re3
{[%clk 0:00:04.3]} 44... Qc1+ {[%clk 0:00:07.2]} 45. Kh2 {[%clk 0:00:04.7]}
45... Qh1+ {[%clk 0:00:07.3]} 46. Kg3 {[%clk 0:00:05.6]} 46... Qg1+ {[%clk
0:00:07.6]} 47. Kh4 {[%clk 0:00:06.5]} 47... Qxg6 {[%clk 0:00:08.3]} 0-1

[Event "*** Titled Tuesday Blitz"]
[Site "Chess.com"]
[Date "2021.02.02"]
[Round "5"]
[White "VladimirBugayev"]
[Black "djano"]
[Result "1/2-1/2"]
[WhiteElo "2253"]
[BlackElo "2471"]
[TimeControl "180+1"]
[EndTime "10:59:15 PST"]
[Termination "Game drawn by repetition"]

1. e4 {[%clk 0:03:00.9]} 1... c6 {[%clk 0:02:59.9]} 2. d4 {[%clk 0:02:59.9]}
2... d5 {[%clk 0:03:00.2]} 3. exd5 {[%clk 0:03:00.5]} 3... cxd5 {[%clk
0:03:01.1]} 4. Bd3 {[%clk 0:03:00.5]} 4... Nc6 {[%clk 0:02:59.6]} 5. c3 {[%clk
0:03:00.9]} 5... g6 {[%clk 0:02:59.8]} 6. Nf3 {[%clk 0:02:53.7]} 6... Bg7 {[%clk
0:02:57.2]} 7. O-O {[%clk 0:02:52.9]} 7... Bf5 {[%clk 0:02:56.7]} 8. Be2 {[%clk
0:02:47.2]} 8... Nf6 {[%clk 0:02:54.1]} 9. h3 {[%clk 0:02:45.2]} 9... O-O {[%clk
0:02:54]} 10. Nbd2 {[%clk 0:02:33]} 10... Ne4 {[%clk 0:02:53.5]} 11. Nh4 {[%clk
0:02:23.5]} 11... Be6 {[%clk 0:02:41.6]} 12. f4 {[%clk 0:02:08.8]} 12... f5
{[%clk 0:02:38.4]} 13. Ndf3 {[%clk 0:02:02.2]} 13... Rb8 {[%clk 0:02:24.5]} 14.
Ng5 {[%clk 0:01:40.1]} 14... Nxg5 {[%clk 0:02:19.1]} 15. fxg5 {[%clk 0:01:39.5]}
15... b5 {[%clk 0:02:16.8]} 16. a3 {[%clk 0:01:35]} 16... a5 {[%clk 0:02:15.2]}
17. Bf4 {[%clk 0:01:35.5]} 17... Rb7 {[%clk 0:02:09.7]} 18. Nf3 {[%clk 0:01:35]}
18... Qd7 {[%clk 0:01:57.5]} 19. Bd3 {[%clk 0:01:26.2]} 19... Bf7 {[%clk
0:01:49.9]} 20. Re1 {[%clk 0:01:09.4]} 20... b4 {[%clk 0:01:48.4]} 21. axb4
{[%clk 0:01:08.5]} 21... axb4 {[%clk 0:01:49.3]} 22. Ra6 {[%clk 0:01:06.8]}
22... bxc3 {[%clk 0:01:47.4]} 23. bxc3 {[%clk 0:01:06.4]} 23... Nb8 {[%clk
0:01:39.5]} 24. Ra5 {[%clk 0:00:54.2]} 24... Nc6 {[%clk 0:01:34.6]} 25. Ra6
{[%clk 0:00:48.9]} 25... Nb8 {[%clk 0:01:34.8]} 26. Ra5 {[%clk 0:00:48.5]} 26...
Rc8 {[%clk 0:01:35]} 27. Qa1 {[%clk 0:00:40]} 27... Nc6 {[%clk 0:01:31.9]} 28.
Rc5 {[%clk 0:00:38.7]} 28... e6 {[%clk 0:01:30.1]} 29. Rb1 {[%clk 0:00:35]}
29... Bf8 {[%clk 0:01:24.5]} 30. Rxb7 {[%clk 0:00:32.6]} 30... Qxb7 {[%clk
0:01:25.4]} 31. Rb5 {[%clk 0:00:33.1]} 31... Qd7 {[%clk 0:01:23.5]} 32. Qa6
{[%clk 0:00:30.2]} 32... Qa7 {[%clk 0:01:03.7]} 33. Qxa7 {[%clk 0:00:24.5]}
33... Nxa7 {[%clk 0:01:04.6]} 34. Rb7 {[%clk 0:00:25]} 34... Rxc3 {[%clk
0:01:01.5]} 35. Bxf5 {[%clk 0:00:22]} 35... gxf5 {[%clk 0:00:56.9]} 36. Rxa7
{[%clk 0:00:21.5]} 36... Bh5 {[%clk 0:00:53.8]} 37. Ne5 {[%clk 0:00:21.4]} 37...
Ra3 {[%clk 0:00:50.2]} 38. Rb7 {[%clk 0:00:19.5]} 38... Ra8 {[%clk 0:00:45.4]}
39. Nd7 {[%clk 0:00:17.7]} 39... Bg7 {[%clk 0:00:45.4]} 40. Nf6+ {[%clk
0:00:17.3]} 40... Bxf6 {[%clk 0:00:45.5]} 41. gxf6 {[%clk 0:00:17.6]} 41... Bf7
{[%clk 0:00:45.7]} 42. Bh6 {[%clk 0:00:16.9]} 42... Rc8 {[%clk 0:00:43.8]} 43.
Kh2 {[%clk 0:00:13.5]} 43... Re8 {[%clk 0:00:43.9]} 44. Kg3 {[%clk 0:00:13.3]}
44... e5 {[%clk 0:00:44.3]} 45. dxe5 {[%clk 0:00:13.3]} 45... Rxe5 {[%clk
0:00:44.6]} 46. Rb8+ {[%clk 0:00:13.4]} 46... Re8 {[%clk 0:00:44.6]} 47. Rxe8+
{[%clk 0:00:12.2]} 47... Bxe8 {[%clk 0:00:45.5]} 48. Kf4 {[%clk 0:00:12.7]}
48... Bg6 {[%clk 0:00:42.9]} 49. Ke5 {[%clk 0:00:12.8]} 49... Kf7 {[%clk
0:00:42.3]} 50. Bg7 {[%clk 0:00:11.9]} 50... f4 {[%clk 0:00:40.2]} 51. Kxd5
{[%clk 0:00:11.7]} 51... Bd3 {[%clk 0:00:38.5]} 52. Ke5 {[%clk 0:00:11.7]} 52...
Bf1 {[%clk 0:00:37.3]} 53. Kxf4 {[%clk 0:00:12.2]} 53... Bxg2 {[%clk 0:00:37.3]}
54. h4 {[%clk 0:00:12.9]} 54... Bd5 {[%clk 0:00:37.1]} 55. Kg5 {[%clk
0:00:12.7]} 55... Be4 {[%clk 0:00:37.4]} 56. Kf4 {[%clk 0:00:12.8]} 56... Bg6
{[%clk 0:00:37.5]} 57. Ke5 {[%clk 0:00:13.1]} 57... Bh5 {[%clk 0:00:37.5]} 58.
Kf4 {[%clk 0:00:13.3]} 58... Bg6 {[%clk 0:00:37.7]} 59. Ke5 {[%clk 0:00:13.9]}
59... Bh5 {[%clk 0:00:38]} 60. Kf4 {[%clk 0:00:14.5]} 60... Bg6 {[%clk
0:00:38.4]} 1/2-1/2

[Event "*** Titled Tuesday Blitz"]
[Site "Chess.com"]
[Date "2021.02.02"]
[Round "5"]
[White "ZenBull"]
[Black "KetiGrant"]
[Result "1-0"]
[WhiteElo "2248"]
[BlackElo "2366"]
[TimeControl "180+1"]
[EndTime "10:59:17 PST"]
[Termination "ZenBull won on time"]

1. Nf3 {[%clk 0:03:00.9]} 1... Nf6 {[%clk 0:02:58.9]} 2. c4 {[%clk 0:02:59]}
2... c5 {[%clk 0:02:56.8]} 3. Nc3 {[%clk 0:02:58.8]} 3... g6 {[%clk 0:02:56.2]}
4. e4 {[%clk 0:02:57.3]} 4... Bg7 {[%clk 0:02:52.5]} 5. d4 {[%clk 0:02:57.2]}
5... cxd4 {[%clk 0:02:49.3]} 6. Nxd4 {[%clk 0:02:58.1]} 6... d6 {[%clk
0:02:44.1]} 7. Be2 {[%clk 0:02:57.4]} 7... Nc6 {[%clk 0:02:42.6]} 8. Be3 {[%clk
0:02:57.4]} 8... O-O {[%clk 0:02:41.7]} 9. O-O {[%clk 0:02:56.9]} 9... Nxd4
{[%clk 0:02:34]} 10. Bxd4 {[%clk 0:02:56.1]} 10... a5 {[%clk 0:02:31.8]} 11. Rc1
{[%clk 0:02:48.5]} 11... a4 {[%clk 0:02:30.9]} 12. Qd2 {[%clk 0:02:43.5]} 12...
Qa5 {[%clk 0:02:27.2]} 13. Rfd1 {[%clk 0:02:33.6]} 13... Be6 {[%clk 0:02:19.9]}
14. f3 {[%clk 0:02:23.3]} 14... Nd7 {[%clk 0:02:11.4]} 15. Be3 {[%clk 0:02:20]}
15... Rfc8 {[%clk 0:02:09.4]} 16. Nd5 {[%clk 0:02:19.4]} 16... Bxd5 {[%clk
0:02:03]} 17. cxd5 {[%clk 0:02:03.1]} 17... Qxd2 {[%clk 0:01:55.6]} 18. Rxc8+
{[%clk 0:01:59.4]} 18... Rxc8 {[%clk 0:01:54.6]} 19. Rxd2 {[%clk 0:01:59.5]}
19... Ne5 {[%clk 0:01:18.5]} 20. Bd4 {[%clk 0:01:43.7]} 20... Bh6 {[%clk
0:00:57.1]} 21. Rd1 {[%clk 0:01:37.3]} 21... Rc2 {[%clk 0:00:55.5]} 22. Bb5
{[%clk 0:01:26.3]} 22... a3 {[%clk 0:00:52.3]} 23. bxa3 {[%clk 0:01:23.8]} 23...
Rxa2 {[%clk 0:00:52]} 24. a4 {[%clk 0:01:20.4]} 24... Bf4 {[%clk 0:00:43.7]} 25.
Bxe5 {[%clk 0:01:05.5]} 25... Bxe5 {[%clk 0:00:27.6]} 26. Kf1 {[%clk 0:00:59.2]}
26... Kg7 {[%clk 0:00:21]} 27. Rc1 {[%clk 0:00:52.4]} 27... Bd4 {[%clk
0:00:20.2]} 28. Rc7 {[%clk 0:00:49.4]} 28... b6 {[%clk 0:00:15.3]} 29. Rxe7
{[%clk 0:00:35.9]} 29... Rf2+ {[%clk 0:00:13.6]} 30. Ke1 {[%clk 0:00:35]} 30...
Rxg2 {[%clk 0:00:13.6]} 31. Rd7 {[%clk 0:00:20.5]} 31... Bc5 {[%clk 0:00:12.4]}
32. h4 {[%clk 0:00:14.5]} 32... h5 {[%clk 0:00:11.1]} 33. Rb7 {[%clk 0:00:13.7]}
33... Rh2 {[%clk 0:00:09.9]} 34. Be8 {[%clk 0:00:13.4]} 34... Kf8 {[%clk
0:00:05.7]} 35. Bxf7 {[%clk 0:00:12.8]} 35... Rxh4 {[%clk 0:00:05]} 36. Bxg6
{[%clk 0:00:11.7]} 36... Rh1+ {[%clk 0:00:04.8]} 37. Ke2 {[%clk 0:00:11.4]}
37... h4 {[%clk 0:00:05.7]} 38. Rh7 {[%clk 0:00:09.7]} 38... h3 {[%clk 0:00:05]}
39. Bf5 {[%clk 0:00:09.2]} 39... h2 {[%clk 0:00:04.4]} 40. Kd3 {[%clk
0:00:04.8]} 40... Bf2 {[%clk 0:00:01.9]} 41. Ke2 {[%clk 0:00:03.4]} 41... Bg3
{[%clk 0:00:01.4]} 42. Be6 {[%clk 0:00:02.8]} 1-0